Cogmind - Beta 13 *** ADVENTURER MODE // 2024.04.09 @ 00:29:25 Player: Sixela963 Result: Destroyed by G-47 Trooper with Particle Gun Performance ------------- Evolutions (3) 1500 Regions Visited (7) 1400 Robots Destroyed (41) 205 Value Destroyed (1128) 1128 Prototype IDs (31) 620 Alien Tech Used (0) 0 Bonus (1131) 1131 TOTAL SCORE: 5984 Bonus ------- High Alert Combat Kills 55 Follower Combat Kills 304 Entered DSFs 500 Aligned with FarCom 300 Friendly Fire -28 Cogmind --------- Core Integrity 0/700 Matter 120/300 Energy 98/100 System Corruption 5% Temperature Cool (15) Movement Flying (32) Location -7/DSF Parts ------- > --- POWER (2) -------- (None) > --- PROPULSION (4) --- Surge Thruster > --- UTILITY (4) ------ (None) > --- WEAPON (3) ------- (None) > --- INVENTORY (5) ---- Gravmag System Gravmag System Gravmag System Light Armor Plating Small Laser Peak State ------------ > --- POWER ------------ (None) > --- PROPULSION ------- Gravmag System Gravmag System Gravmag System Gravmag System > --- UTILITY ---------- Small Storage Unit Active Sensor Suite > --- WEAPON ----------- Enhanced Autogun > --- INVENTORY -------- Gravmag System Gravmag System Gravmag System Light Armor Plating Small Laser [Rating: 49] Favorites ----------- Power Light Ion Engine Engine Light Ion Engine Power Core Light Nuclear Core Propulsion Compact Wheel Wheel Compact Wheel Hover Unit Aerolev Unit Flight Unit Surge Thruster Utility Small Storage Unit Device Decoy Drone Bay Storage Small Storage Unit Processor Targeting Computer Hackware Authchip [Power] Protection Hardened Medium Armor Plating Weapon Small Laser Energy Gun Small Laser Ballistic Gun Assault Rifle Ballistic Cannon Gauss Cannon Launcher Grenade Launcher Special Weapon Field Lobotomy Kit Slashing Weapon Blade Saw Special Melee Weapon Datajack Build | -11 -10 -10 -10 -9 -8 -7 -7 ------- Run | Yrd Mat Min Exi Min Mat Fac DSF Slots Evolved 6 | . . . . . 4 2 . Power 1 | . . . . . . 1 . Propulsion 2 | . . . . . 2 . . Utility 2 | . . . . . 2 . . Weapon 1 | . . . . . . 1 . Parts Attached 58 | 6 8 4 4 1 15 7 13 Power 16 | 1 1 2 1 1 2 2 6 Engine 10 | 1 1 2 1 . 2 1 2 Core 6 | . . . . 1 . 1 4 Reactor . | . . . . . . . . Propulsion 18 | 2 3 1 2 . 4 4 2 Treads . | . . . . . . . . Leg . | . . . . . . . . Wheel 6 | 2 1 . 2 . 1 . . Hover 10 | . 2 1 . . 3 4 . Flight 2 | . . . . . . . 2 Utility 9 | 1 1 . . . 4 1 2 Device 3 | . . . . . 2 . 1 Storage 1 | 1 . . . . . . . Processor 3 | . 1 . . . 2 . . Hackware 1 | . . . . . . . 1 Protection 1 | . . . . . . 1 . Artifact . | . . . . . . . . Weapon 15 | 2 3 1 1 . 5 . 3 Energy Gun 4 | 1 1 1 . . 1 . . Energy Cannon . | . . . . . . . . Ballistic Gun 4 | 1 1 . . . 2 . . Ballistic Cannon 1 | . . . . . . . 1 Launcher 2 | . . . . . 2 . . Special Weapon 1 | . . . 1 . . . . Impact Weapon . | . . . . . . . . Slashing Weapon 2 | . . . . . . . 2 Piercing Weapon . | . . . . . . . . Special Melee Weapon 1 | . 1 . . . . . . Unidentified Prototypes 5 | . . . . . 3 1 1 Parts Lost 14 | . 3 1 . . 1 . 9 Power 2 | . . . . . . . 2 Propulsion 5 | . 1 1 . . 1 . 2 Utility 2 | . . . . . . . 2 Weapon 5 | . 2 . . . . . 3 Highest Loss Streak 9 | . 2 1 . . 1 . 9 To Critical Strikes . | . . . . . . . . Average Slot Usage (%) 91 | . 92 100 100 100 79 76 43 Engine 8 | . 14 14 14 2 5 9 4 Core 4 | . . . . 11 3 . 1 Wheel 13 | . 23 . 8 28 3 . . Hover 12 | . 1 28 19 . 23 20 15 Device 2 | . . . . . 8 7 4 Storage 12 | . 14 14 14 14 9 7 3 Processor 11 | . 11 14 14 14 9 7 2 Energy Gun 9 | . 9 14 14 14 . . . Ballistic Gun 7 | . 12 14 9 . 7 7 3 Special Weapon 5 | . . . 4 14 6 . . Naked Turns 1 | . . . . . . . 1 Heaviest Build 36 | 12 14 13 17 19 35 27 36 Greatest Support 45 | 32 32 12 26 26 42 45 45 Greatest Overweight (x) 4 | . . 1 . . 1 . 4 Average Overweight (x) . | . . . . . . . . Largest Inventory Capacity 8 | 8 8 8 8 8 8 8 8 Average Capacity 7 | 7 8 8 8 8 8 8 6 Most Carried 8 | 1 7 8 8 8 8 7 6 Average Carried 6 | . 5 7 7 7 7 5 5 Final Capacity 8 | 8 8 8 8 8 8 8 5 Final Carried 8 | 1 7 8 8 8 6 5 5 Class Distribution -------------------- 91% | Mutant 8% | Commander-Mutant Dominant Class ---------------- Mutant | -10/Materials Mutant | -10/Mines Mutant | -10/Exiles Mutant | -9/Mines Mutant | -8/Materials Mutant | -7/Factory Mutant | -7/DSF Resources | -11 -10 -10 -10 -9 -8 -7 -7 ----------- Run | Yrd Mat Min Exi Min Mat Fac DSF Matter Collected 1086 | 229 162 89 . 86 456 . 64 Remotely . | . . . . . . . . Salvage Created 1274 | . 265 74 . 59 798 . 78 Parts 82 | . 12 6 . 3 51 . 10 Haulers Intercepted 2 | . . . . . 2 . . Recyclers Shooed 1 | . . . . . 1 . . Parts Field Recycled . | . . . . . . . . Retrieved Matter . | . . . . . . . . Parts Self-Destructed . | . . . . . . . . Prevented . | . . . . . . . . Kills | -11 -10 -10 -10 -9 -8 -7 -7 ------- Run | Yrd Mat Min Exi Min Mat Fac DSF Combat Hostiles Destroyed 36 | . 8 3 . 2 20 . 3 Melee 2 | . . . . . . . 2 Guns 26 | . 8 3 . 2 12 . 1 AOE 8 | . . . . . 8 . . Classes Destroyed 11 | . 2 . . . 7 . 2 Builder 1 | . . . . . 1 . . Hauler 2 | . . . . . 2 . . Recycler 1 | . . . . . 1 . . Watcher 1 | . . . . . 1 . . Swarmer 14 | . 3 2 . 1 8 . . Cutter 2 | . . . . . . . 2 Grunt 14 | . 5 1 . 1 7 . . Brawler 1 | . . . . . 1 . . Duelist 2 | . . . . . 2 . . Sentry 2 | . . . . . 2 . . Heavy 1 | . . . . . . . 1 Best Kill Streak 7 | . 4 2 . 1 7 . 2 Combat Bots Only 6 | . 4 2 . 1 6 . 2 Max Kills in Single Turn 3 | . 1 1 . 1 3 . 1 Gunslinging . | . . . . . . . . Exploded 1 | . . . . . 1 . . Melee 1 | . . . . . . . 1 Uniques/NPCs Destroyed . | . . . . . . . . Combat | -11 -10 -10 -10 -9 -8 -7 -7 -------- Run | Yrd Mat Min Exi Min Mat Fac DSF Hostile Shots Fired 311 | . 73 16 . 4 84 . 134 Missed 108 | . 30 3 . 1 32 . 42 Damage Taken 2699 | . 348 118 . 20 692 . 1521 Core 920 | . 104 43 . 8 59 . 706 Absorbed by Shields . | . . . . . . . . Ignored by Resistances 765 | . 105 36 . 7 199 . 418 Core Remaining (%) 75 | 100 . . . 38 89 . . Volleys Fired 131 | . 38 8 . 8 69 . 8 Largest 3 | . 2 2 . 2 2 . 3 Hottest 103 | . 60 60 . 40 55 . 103 Shots Fired 172 | . 50 16 . 9 84 . 13 Gun 144 | . 50 16 . 8 62 . 8 Cannon 3 | . . . . . . . 3 Launcher 20 | . . . . . 18 . 2 Special 5 | . . . . 1 4 . . Kinetic 105 | . 25 8 . . 61 . 11 Thermal 17 | . . 8 . 8 1 . . Explosive 20 | . . . . . 18 . 2 Electromagnetic 25 | . 25 . . . . . . Robot Hit Streak 33 | . 12 12 . 4 33 . 8 Robot Miss Streak 3 | . 3 1 . 3 1 . 1 Penetration Max . | . . . . . . . . Secondary Targets 1 | . 1 . . . . . . Max Gunslinging Chain 1 | . 1 . . . . . . Shots Hit Robots 144 | . 41 12 . 5 73 . 13 Core Hits 87 | . 14 6 . 4 46 . 17 Critical Kills . | . . . . . . . . Critical Parts Destroyed 1 | . 1 . . . . . . Critical Strikes 2 | . 1 . . . . . 1 Destroy 1 | . 1 . . . . . . Sever 1 | . . . . . . . 1 Melee Attacks 6 | . 3 . . . . . 3 Impact . | . . . . . . . . Slashing 3 | . . . . . . . 3 Piercing . | . . . . . . . . Sneak Attacks 2 | . 2 . . . . . . Combat Hostiles . | . . . . . . . . Follow-up Attacks . | . . . . . . . . Damage Inflicted 3012 | . 606 147 . 43 1832 . 384 Guns 1665 | . 506 147 . 43 848 . 121 Cannons 87 | . . . . . . . 87 Explosions 1200 | . 100 . . . 983 . 117 Melee 33 | . . . . . . . 33 Ramming 27 | . . . . . 1 . 26 Kinetic 1369 | . 232 81 . . 848 . 208 Thermal 209 | . 100 66 . 43 . . . Explosive 934 | . . . . . 817 . 117 Electromagnetic 440 | . 274 . . . 166 . . Impact . | . . . . . . . . Slashing 33 | . . . . . . . 33 Piercing . | . . . . . . . . Highest Corruption 5 | . 2 2 2 2 . 5 5 Average Corruption 2 | . 1 2 2 2 . 5 5 Corruption Purged . | . . . . . . . . Corruption Blocked . | . . . . . . . . Effects 31 | . 1 10 5 12 . 1 2 Message Errors 7 | . . 1 1 3 . 1 1 Matter Fused 8 | . . 3 2 3 . . . Heat Flow Errors 6 | . . 2 2 2 . . . Energy Discharges 4 | . . 2 . 2 . . . Data Loss (minor) 4 | . 1 . . 2 . . 1 Data Loss (major) 1 | . . 1 . . . . . Misfires 1 | . . 1 . . . . . Overload Shots . | . . . . . . . . Overflow Damage 37 | . 17 . . . 20 . . Projectiles . | . . . . . . . . Explosions 37 | . 17 . . . 20 . . Melee . | . . . . . . . . Knockbacks . | . . . . . . . . Impact . | . . . . . . . . Kinetic . | . . . . . . . . Secondary . | . . . . . . . . Self-Inflicted Damage 122 | . . . . . 113 . 9 Shots 6 | . . . . . 6 . . Rammed 22 | . . . . . 1 . 21 Targets Rammed 22 | . . . . . 1 . 21 Kicked . | . . . . . . . . Crushed . | . . . . . . . . Highest Temperature 270 | . 48 224 226 270 31 . 36 Average Temperature 47 | . 19 67 109 96 10 . 16 Received Heat Transfer 705 | . 219 78 . 12 306 . 90 Siege Activations . | . . . . . . . . Robots Corrupted . | . . . . . . . . Combat Hostiles . | . . . . . . . . Parts Fried . | . . . . . . . . Impact Corruptions . | . . . . . . . . Robots Melted . | . . . . . . . . Combat Hostiles . | . . . . . . . . Parts Melted . | . . . . . . . . Heat Transferred 400 | . 150 150 . 100 . . . Parts Sabotaged . | . . . . . . . . Parts Stolen . | . . . . . . . . Parts Stripped . | . . . . . . . . Power Chain Reactions 4 | . 2 . . . 2 . . Alert | -11 -10 -10 -10 -9 -8 -7 -7 ------- Run | Yrd Mat Min Exi Min Mat Fac DSF Peak Influence 570 | . 143 81 . 117 570 150 133 Initial 150 | . . 46 . . . 150 92 Average 83 | . 56 58 . 46 164 150 99 Maximum Alert Level 2 | . . . . . 2 . . Low Security (%) 92 | 100 100 100 . 100 68 100 100 Level 1 5 | . . . . . 22 . . Level 2 2 | . . . . . 8 . . Level 3 . | . . . . . . . . Level 4 . | . . . . . . . . Level 5 . | . . . . . . . . High Security . | . . . . . . . . Max Security . | . . . . . . . . Squads Dispatched 10 | . 1 . . . 7 . 2 Investigation 3 | . 1 . . . 2 . . Extermination . | . . . . . . . . Reinforcement 4 | . . . . . 2 . 2 Assault . | . . . . . . . . Garrison 3 | . . . . . 3 . . Intercept . | . . . . . . . . Searches Triggered . | . . . . . . . . Construction Impeded 1 | . . . . . 1 . . Haulers Reinforced . | . . . . . . . . Active Scanning Responses . | . . . . . . . . Cargo Convoy Interrupts . | . . . . . . . . Stealth | -11 -10 -10 -10 -9 -8 -7 -7 --------- Run | Yrd Mat Min Exi Min Mat Fac DSF Distress Signals 13 | . 3 . . . 10 . . Communications Jammed . | . . . . . . . . Distress Signals . | . . . . . . . . Times Spotted 90 | . 18 7 . 9 47 . 9 Peak Tracking Total 9 | . 6 3 . 3 9 . 6 Tactical Retreats 5 | . 1 1 . . 3 . . Traps | -11 -10 -10 -10 -9 -8 -7 -7 ------- Run | Yrd Mat Min Exi Min Mat Fac DSF Traps Triggered 2 | . 2 . . . . . . Indirectly . | . . . . . . . . Trap Hack Attempts 3 | . 3 . . . . . . Triggered . | . . . . . . . . Disarmed . | . . . . . . . . Reprogrammed 4 | . 4 . . . . . . Reused . | . . . . . . . . Traps Extracted . | . . . . . . . . Installed . | . . . . . . . . Triggered . | . . . . . . . . Machines | -11 -10 -10 -10 -9 -8 -7 -7 ---------- Run | Yrd Mat Min Exi Min Mat Fac DSF Machines Disabled 4 | . 1 . . . 3 . . Max in Single Turn 2 | . 1 . . . 2 . . Machines Repaired . | . . . . . . . . Machines Dismantled . | . . . . . . . . Machines Sabotaged . | . . . . . . . . Overloaded Fab Kills . | . . . . . . . . Hacking | -11 -10 -10 -10 -9 -8 -7 -7 --------- Run | Yrd Mat Min Exi Min Mat Fac DSF Machines Accessed 20 | . 7 1 5 . 6 1 . Terminals 13 | . 7 . . . 5 1 . Fabricators . | . . . . . . . . Repair Stations . | . . . . . . . . Recycling Units . | . . . . . . . . Scanalyzers 1 | . . . . . 1 . . Garrison Access . | . . . . . . . . Total Hacks 75 | . 18 1 36 . 18 2 . Successful 58 | . 10 1 36 . 10 1 . Failed 17 | . 8 . . . 8 1 . Catastrophic 6 | . 1 . . . 5 . . Database Lockouts . | . . . . . . . . Manual 8 | . . . 1 . 7 . . Terminals 35 | . 18 . . . 15 2 . Fabricators . | . . . . . . . . Repair Stations . | . . . . . . . . Recycling Units . | . . . . . . . . Scanalyzers 3 | . . . . . 3 . . Garrison Access . | . . . . . . . . Terminal Hacks 57 | . 10 1 36 . 9 1 . Record 35 | . . . 35 . . . . Robot Analysis 2 | . 1 . . . 1 . . Prototype ID Bank 1 | . 1 . . . . . . Open Door 1 | . . 1 . . . . . Open DSF 1 | . . . . . . 1 . Level Access Points 1 | . . . . . 1 . . Branch Access Points 2 | . . . . . 2 . . Emergency Access Points 1 | . . . . . 1 . . Scanalyzer Index 1 | . 1 . . . . . . Locate Traps 3 | . 2 . . . 1 . . Reprogram Traps 1 | . 1 . . . . . . Transport Status 2 | . 1 . . . 1 . . Investigation Status 1 | . . . . . 1 . . Hauler Manifests 2 | . 1 . . . 1 . . Registered Components 1 | . 1 . . . . . . Zone Layout 1 | . 1 . . . . . . Derelict Proto ID Bank 1 | . . . 1 . . . . Fabricator Hacks . | . . . . . . . . Repair Station Hacks . | . . . . . . . . Recycling Unit Hacks . | . . . . . . . . Scanalyzer 1 | . . . . . 1 . . Insert Component 1 | . . . . . 1 . . Garrison Access Hacks . | . . . . . . . . Unauthorized Hacks . | . . . . . . . . Terminals . | . . . . . . . . Fabricators . | . . . . . . . . Repair Stations . | . . . . . . . . Recycling Units . | . . . . . . . . Scanalyzers . | . . . . . . . . Garrison Access . | . . . . . . . . Data Cores Recovered . | . . . . . . . . Used . | . . . . . . . . Hacking Detections 11 | . 4 . . . 6 1 . Full Trace Events 5 | . 3 . . . 2 . . Feedback Events . | . . . . . . . . Feedback Blocked . | . . . . . . . . Robot Schematics Acquired . | . . . . . . . . Robots Built . | . . . . . . . . Authchips . | . . . . . . . . Time . | . . . . . . . . Total Robot Build Rating . | . . . . . . . . Part Schematics Acquired . | . . . . . . . . Parts Built . | . . . . . . . . Authchips . | . . . . . . . . Time . | . . . . . . . . Total Part Build Rating . | . . . . . . . . Parts Repaired . | . . . . . . . . Time . | . . . . . . . . Parts Recycled . | . . . . . . . . Recycled Matter . | . . . . . . . . Retrieved Matter . | . . . . . . . . Retrieved Components . | . . . . . . . . Parts Scanalyzed 1 | . . . . . 1 . . Part Schematics Acquired . | . . . . . . . . Parts Damaged 1 | . . . . . 1 . . Bothacking | -11 -10 -10 -10 -9 -8 -7 -7 ------------ Run | Yrd Mat Min Exi Min Mat Fac DSF Used RIF Installer . | . . . . . . . . Robots Hacked 2 | . 2 . . . . . . Non-combat 1 | . 1 . . . . . . Combat 1 | . 1 . . . . . . Robot Hacks Applied 2 | . 2 . . . . . . parse_system 1 | . 1 . . . . . . no_distress 1 | . 1 . . . . . . Relay Couplers Released . | . . . . . . . . Fabnet Peak Effective % . | . . . . . . . . Robots Rewired . | . . . . . . . . Allies Hacked . | . . . . . . . . Hacks Repelled . | . . . . . . . . Allies | -11 -10 -10 -10 -9 -8 -7 -7 -------- Run | Yrd Mat Min Exi Min Mat Fac DSF Total Allies 8 | . . . . 4 4 . . Largest Group 4 | . . . . 4 4 . . Highest-Rated Group 64 | . . . . 56 64 . . Highest-Rated Ally 18 | . . . . 16 18 . . Total Orders . | . . . . . . . . Ally Attacks 93 | . . . . 45 48 . . Total Damage 1048 | . . . . 400 648 . . Kills 13 | . . . . 6 7 . . Allies Corrupted . | . . . . . . . . Allies Melted . | . . . . . . . . Field Lobotomies 5 | . . . . 1 4 . . Intel | -11 -10 -10 -10 -9 -8 -7 -7 ------- Run | Yrd Mat Min Exi Min Mat Fac DSF Robot Analysis Total 2 | . 1 . . . 1 . . Derelict Logs Recovered 3 | . . 2 . 1 . . . Drone Launches 16 | . . . . . 16 . . Drone Recoveries . | . . . . . . . . Exploration | -11 -10 -10 -10 -9 -8 -7 -7 ------------- Run | Yrd Mat Min Exi Min Mat Fac DSF Turns Passed 3686 | 73 657 577 314 1012 841 75 137 Spaces Moved 3459 | 66 558 736 476 785 664 69 105 Core 19 | 5 . . . . . . 14 Treads . | . . . . . . . . Legs . | . . . . . . . . Wheels 1506 | 61 509 . 99 785 52 . . Hover 1928 | . 49 736 377 . 612 69 85 Flight 6 | . . . . . . . 6 Fastest Speed 32 | 50 56 56 56 90 42 45 32 Average Speed 80 | 96 95 64 63 90 91 47 58 Slowest Speed 250 | 100 100 116 90 90 107 56 250 Overloaded Moves 2 | . . . . . . . 2 Propulsion Burnouts . | . . . . . . . . Robots Hopped . | . . . . . . . . Cave-ins Triggered . | . . . . . . . . Exploration Rate (%) 63 | 3 83 98 73 104 70 1 72 Regions Visited 7 Branch Regions 3 Pre-discovered Areas 3 | . . 2 1 . . . . Known Exits Taken 2 | . . . . . 1 1 . Unknown Exits Taken 5 | 1 1 1 1 1 . . . Scrap Searched 5 | . . 3 . 2 . . . Spaces Dug . | . . . . . . . . Terrain Destroyed 106 | . 14 . . . 86 . 6 Melee . | . . . . . . . . Projectile . | . . . . . . . . AOE 106 | . 14 . . . 86 . 6 Terrain Rammed . | . . . . . . . . Walls Destroyed . | . . . . . . . . Machines Disabled . | . . . . . . . . Actions | -11 -10 -10 -10 -9 -8 -7 -7 --------- Run | Yrd Mat Min Exi Min Mat Fac DSF Total 4181 | 72 625 822 488 1081 822 110 161 Wait 450 | . 8 64 7 283 55 26 7 Move 3452 | 65 557 735 475 784 663 68 105 Hop . | . . . . . . . . Pick Up 26 | 1 8 6 . 2 5 3 1 Fast Attach 31 | 6 1 1 1 1 3 6 12 Attach 10 | . 2 2 . . 5 1 . Detach 2 | . . . 1 . 1 . . Swap 17 | . 5 1 3 . 7 . 1 Drop 24 | . . 5 1 3 6 6 3 Fire 131 | . 38 8 . 8 69 . 8 Melee 6 | . 3 . . . . . 3 Ram 22 | . . . . . 1 . 21 Kick . | . . . . . . . . Crush . | . . . . . . . . Escape Stasis . | . . . . . . . . Rewire 7 | . . . . . 7 . . Trap 3 | . 3 . . . . . . Miscellaneous . | . . . . . . . . Route ------- -11/Scrapyard -10/Materials (discovered 4 exits: [*Mat x3] / *Min) -10/Mines (discovered 3 exits: [*Mat x2] / *Exi) -10/Exiles (discovered 2 exits: [*Min x2]) -9/Mines (discovered 2 exits: *Mat x2) -8/Materials (discovered 3 exits: *Fac x3) -7/Factory (discovered 2 exits: [*Low] / DSF) -7/DSF History --------- Turn | Location | Event 3 | -11/Scrapyard | Discovered new exit (range 15) 74 | -11/Scrapyard | Entered Materials 244 | -10/Materials | Discovered new exit (range 8) 313 | -10/Materials | Build established: Mutant 365 | -10/Materials | Discovered new exit (range 16) 645 | -10/Materials | Discovered new exit (range 16) 718 | -10/Materials | Discovered new exit (range 16) 731 | -10/Materials | Entered Mines 739 | -10/Mines | Met a Derelict bent on vengeance 765 | -10/Mines | Core integrity fell below 50% 877 | -10/Mines | Learned Materials interactive machine intel 884 | -10/Mines | Found a damaged Exp. Sensor Array with a note attached 886 | -10/Mines | Found Prototype Device 909 | -10/Mines | Discovered new exit (range 9) 935 | -10/Mines | Found the Drone Emporium 948 | -10/Mines | Found Prototype Device 1179 | -10/Mines | Discovered new exit (range 7) 1276 | -10/Mines | Learned location of Storage (-9) 1306 | -10/Mines | Deemed a non-threat by the Exiles lab entrance 1306 | -10/Mines | Discovered new exit (range 5) 1308 | -10/Mines | Entered Exiles 1317 | -10/Exiles | Discovered new exit (range 15) 1335 | -10/Exiles | Met 8R-AWN 1345 | -10/Exiles | Met EX-HEX 1368 | -10/Exiles | Met EX-DEC 1406 | -10/Exiles | Learned location of Zion (-6) 1431 | -10/Exiles | Discovered new exit (range 10) 1474 | -10/Exiles | Met EX-BIN 1482 | -10/Exiles | Aligned with FarCom system 1482 | -10/Exiles | Given EX-Vault access code 1517 | -10/Exiles | Opened EX-Vault 1526 | -10/Exiles | Found Field Lobotomy Kit 1546 | -10/Exiles | Warned to stay clear of 0b10 Research branches 1622 | -10/Exiles | Left Exiles lab with Field Lobotomy Kit 1622 | -10/Exiles | Entered Mines 1624 | -9/Mines | Assimilated G-47 Trooper with FLK Orb 1654 | -9/Mines | Discovered new exit (range 3) 1769 | -9/Mines | Assisted by bots powering up and referring to "LRC-V3" 1922 | -9/Mines | Learned location of 1 exit from Lower Caves 1973 | -9/Mines | Discovered new exit (range 13) 2634 | -9/Mines | Entered Materials 2634 | -8/Materials | Accompanied by 2 allies 2634 | -8/Materials | Evolved 4 slots: Propulsion x2, Utility x2 2634 | -8/Materials | Identified Decoy Drone Bay 2635 | -8/Materials | Loaded intel: 19 interactive machine locations 2884 | -8/Materials | Garrison activated, responded to threat 2919 | -8/Materials | Discovered new exit (range 12) 3088 | -8/Materials | Discovered new exit (range 11) 3106 | -8/Materials | Identified Exp. Sensor Array 3176 | -8/Materials | Assimilated G-47 Trooper with FLK Orb 3196 | -8/Materials | Assimilated Y-45 Defender with FLK Orb 3241 | -8/Materials | Assimilated Y-45 Defender with FLK Orb 3258 | -8/Materials | Assimilated L-31 Rogue with FLK Orb 3305 | -8/Materials | Lost 3 allies 3346 | -8/Materials | Garrison activated, responded to threat 3446 | -8/Materials | Identified exit to Factory 3449 | -8/Materials | Lost 5 allies 3475 | -8/Materials | Entered Factory 3475 | -7/Factory | Evolved 2 slots: Power x1, Weapon x1 3541 | -7/Factory | Discovered new exit (range 13) 3550 | -7/Factory | Identified exit to DSF 3550 | -7/Factory | Entered DSF 3578 | -7/DSF | Additional patrols routed to DSF 3604 | -7/DSF | Found Prototype Device 3604 | -7/DSF | Identified Active Sensor Suite 3643 | -7/DSF | Core integrity fell below 50% 3667 | -7/DSF | Core integrity fell below 20% 3687 | -7/DSF | Destroyed by G-47 Trooper with Particle Gun Last Messages --------------- G-47 Trooper unfolds itself. Penetrated by Slug. Acquired Lgt. Nuclear Core. Blade Saw severed. Acquired Blade Saw. C-17 Slicer destroyed. Slug penetrates L-41 Fighter. Acquired Lgt. Nuclear Core. Penetrated by Slug. Blade Saw destroyed. Acquired 25 matter. Penetrated by Slug. Acquired Surge Thruster. The Surge Thruster is "overloadable", activating it again increases its output for additional resource costs, and may damage the unit. Surge Thruster destroyed. Lgt. Nuclear Core destroyed. Acquired Surge Thruster. Lgt. Nuclear Core destroyed. Map ----- +----------------------------------------------------+ | | | | | | | | | | | | | | | | | | | ????????????????????????????????????????????????? | | ????????????????????????????????????????????????? | | ????????????????????????????????????????????????? | | ?????????##?????????????????????????????????????? | | ?????????""#????????????????????????????????????? | | ?????????#"#????????????????????????????????????? | | ??????####"##???????#########???????????????????? | | ??????#"""""#########!!!!! #???????????????????? | | ??????#"""""##==# #!!!!! #???????????????????? | | ????"##"" #???????????????????? | | ????""""" #???????????????????? | | ????###"" ##==#===### ###???????????????????? | | ??????### ###==#===### ###???????????????????? | | ???????## ##########// #???????????????????? | | ???????#= ==#??????#// #???????????????????? | | ???????#= ==#??????#// #???????????????????? | | ???????## ###?Y????### @ ###???????????????????? | | ???????# ==#??????#!! !!#???????????????????? | | ???????# *==#??????#!! !!#???????????????????? | | ???????# *==#??#####!! !!#???????????????????? | | ??????### ###### ## ###?###???????????????? | | ??????#% ##===# ## ##?!!!#?? #???????????? | | ??????#** ##=== ! #al a##!!!# ## ==#?????? | | ??????#] %*]* g! #?????? | | ?????#"]] /%! = %= #?????? | | ??????#]] % *%= = #?????? | | ??????#! ##***#!!!##ag a##!!!# ## #?????? | | ??????#!! ##***#!!!### ##?!!!#?? #???????????? | | ??????################# h ###?###???????????????? | | ????????????????????# !g*=**#???????????????????? | | ????????????????????#!!==! *#???????????????????? | | ????????????????????#!! **#???????????????????? | | ????????????????????### ###???????????????????? | | ????????????????????# ????????????????????? | | ????????????????????# #???????????????????? | | ????????????????????# " #???????????????????? | | ????????????????????### "%###???????????????????? | | ??????????????????????# "#?????????????????????? | | ?????????????????????? ^ ?????????????????????? | | ????????????????????? ?????????????????????? | | ????????????????????? ]]????????????????????? | +----------------------------------------------------+ Best States ------------- Heat Dissipation 34 Energy Generation 23 Energy Capacity 250 Matter Stores 300 Matter Capacity 300 Sight Range 16 Robot Scan Range 20 Terrain Scan Density 10 Additional Mass Support 9 Armor Coverage 225 Resistance: KI 20 Resistance: TH 20 Resistance: EX 20 Resistance: EM 20 Resistance: I 20 Resistance: S 20 Resistance: P 20 Evasion (%) 55 Targeting Accuracy 8 Offensive Hacking 10 Authchip Count 1 Item Schematics ----------------- None Robot Schematics ------------------ None Fabricated ------------ Nothing Alien Tech Used ----------------- None Achievements -------------- Fist Fight I Spy Release The Drones! Safety First Challenges ------------ None Game ------ Seed TerrabombStructuralStripper Manual? 0 Play Time 01:11:25 Cumulative 11.9 hours Start 2024.04.06 @ 01:50:44 End 2024.04.09 @ 00:29:25 Sessions 3 Manual Loads 0 Difficulty Adventurer Special Mode None Game No. 7 Rogue 0 Adventurer 7 Explorer 0 Win Type - Total 0 Types 0/0/0/0/0/0/0/0/0 Lore% 17 Gallery% 16 Achievement% 17 Wizard Run 0 Options --------- Layout 1 ASCII 0 Keyboard 0 Movement Mouse Keybinds 0 Fullscreen 1 Font 24/Smallcaps Map View 50x35 Zoom Use 0% Tactical HUD 0 Map Filters NONE Filters NONE Steam 1 RUN: c3ef0729-e191-4f3a-a841-9118240a3fbc